bitfinex-derivatives/quotes_BTCF0:USTF0_20251115
["timestamp","ask_amount","ask_price","bid_price","bid_amount"]
[1763168930985,0.0001579,95003.0,95000.0,0.1053527]
[1763168931284,0.0001579,95003.0,95002.0,0.3608]
[1763168932386,0.01306,95016.0,95003.0,0.1053494]
[1763168932583,0.01306,95016.0,95015.0,0.105336]
[1763168932777,0.01306,95016.0,95015.0,0.466136]
[1763168933281,0.00010376,95025.0,95024.0,0.1053261]
[1763168933482,0.00010376,95025.0,95024.0,0.4661261]
[1763168933676,0.111289,95029.0,95028.0,0.1053216]
[1763168933873,0.01306,95030.0,95028.0,0.4661216]
[1763168934583,0.0004573,95030.0,95028.0,0.4661216]
[1763168935382,0.02305,95029.0,95028.0,0.3608]
[1763168935786,0.04459,95029.0,95028.0,0.3608]
[1763168936181,0.04459,95029.0,95028.0,0.3618]
[1763168936684,0.04459,95029.0,95028.0,0.3608]
[1763168938383,0.0004573,95030.0,95029.0,0.1053205]
[1763168939192,0.01306,95040.0,95035.0,0.1053139]
[1763168939492,0.01306,95040.0,95035.0,0.4661139]
[1763168942196,0.01306,95051.0,95035.0,0.4661139]
[1763168942502,0.01306,95051.0,95035.0,0.3608]
[1763168942702,0.01306,95051.0,95045.0,0.3608]
[1763168943500,0.01306,95062.0,95045.0,0.3608]
[1763168943796,0.03572,95062.0,95061.0,0.7216]
[1763168944795,0.01306,95062.0,95061.0,0.73210222]
[1763168945197,0.05729,95062.0,95061.0,0.73210222]
[1763168945906,0.03572,95062.0,95061.0,0.73210222]
[1763168946798,0.05729,95062.0,95061.0,0.73210222]
[1763168948198,0.01306,95062.0,95061.0,0.73210222]
[1763168948503,0.05729,95062.0,95061.0,0.7216]
[1763168948706,0.17470706,95062.0,95061.0,0.7216]
[1763168949696,0.01306,95062.0,95061.0,0.7216]
[1763168951215,0.01267,95073.0,95071.0,0.105273]
[1763168951507,0.01267,95073.0,95072.0,0.3608]
[1763168952296,0.03474,95073.0,95072.0,0.3608]
[1763168952603,0.16890307,95073.0,95072.0,0.3608]
[1763168952999,0.16890307,95073.0,95070.0,0.00219803]
[1763168953303,0.0583,95062.0,95061.0,0.3608]
[1763168953618,0.16827455,95062.0,95061.0,0.3608]
[1763168955401,0.16827455,95062.0,95061.0,0.2908]
[1763168956504,0.03734,95003.0,95002.0,0.04968358]
[1763168956703,0.04513,94994.0,94980.0,0.18784102]
[1763168956911,0.7216,95003.0,94980.0,0.00073267]
[1763168956912,0.04513,94981.0,94980.0,0.00073267]
[1763168957101,0.7216,94986.0,94979.0,0.02137]
[1763168957102,0.04732803,94980.0,94979.0,0.02137]
[1763168957308,0.04732803,94980.0,94970.0,0.18784102]
[1763168957309,0.09556762,94980.0,94970.0,0.18784102]
[1763168957609,0.3608,94971.0,94970.0,0.23128369]
[1763168957799,0.3608,94986.0,94985.0,0.04271]
[1763168958098,0.36087521,94986.0,94985.0,0.04271]
[1763168958509,0.3598,94994.0,94993.0,0.04271]
[1763168958716,0.00015782,94995.0,94994.0,0.04271]
[1763168963216,0.0583,94991.0,94990.0,0.00073267]
[1763168963616,0.17214825,94991.0,94990.0,0.00073267]
[1763168963918,0.04513,94985.0,94984.0,0.0001579]
[1763168964120,0.40593,94985.0,94984.0,0.0001579]
[1763168964322,0.51977825,94985.0,94984.0,0.0001579]
[1763168967518,0.3608,94985.0,94984.0,0.0428679]
[1763168968017,0.36095782,94995.0,94994.0,0.04558]
[1763168969016,0.38311782,94995.0,94994.0,0.04558]
[1763168969925,0.36095782,94995.0,94994.0,0.04558]
[1763168971122,0.00015782,94995.0,94994.0,0.04558]
[1763168971714,0.3608,95007.0,95006.0,0.04558]
[1763168974621,0.3608,95007.0,95006.0,0.150926]
[1763168974826,0.04653803,95010.0,95009.0,0.02316]
[1763168976328,0.00219803,95010.0,95009.0,0.1509227]
[1763168976631,0.00319803,95010.0,95009.0,0.1509227]
[1763168977637,0.001,95010.0,95009.0,0.5117227]
[1763168978029,0.02216,95021.0,95020.0,0.1509101]
[1763168978229,0.04434,95021.0,95020.0,0.04631267]
[1763168978427,0.15582164,95021.0,95020.0,0.00073267]
[1763168978627,0.15582164,95021.0,95020.0,0.04631267]
[1763168980238,0.15682164,95021.0,95020.0,0.05680656]
[1763168980437,0.15782164,95021.0,95020.0,0.05680656]
[1763168981526,0.002,95021.0,95020.0,0.05680656]
[1763168982031,5.649e-05,95021.0,95020.0,0.05680656]
[1763168982338,0.3608,95036.0,95020.0,0.05680656]
[1763168982339,0.38296,95036.0,95035.0,0.04558]
[1763168982842,0.3608,95036.0,95035.0,0.04558]
[1763168983532,0.3618,95036.0,95035.0,0.04558]
[1763168983731,0.002,95036.0,95035.0,0.04558]
[1763168985433,0.04634,95036.0,95030.0,0.00073267]
[1763168985629,0.04434,95031.0,95030.0,0.02389267]
[1763168985831,0.04434,95031.0,95030.0,0.04631267]
[1763168987832,0.38296,95039.0,95038.0,0.02316]
[1763168988138,0.52378275,95039.0,95038.0,0.04558]
[1763168990141,0.16298275,95039.0,95038.0,0.04558]
[1763168990737,0.00026303,95046.0,95033.0,0.3608]
[1763168990738,0.00026303,95046.0,95045.0,0.04558]
[1763168991941,0.00026303,95046.0,95045.0,0.07389358]
[1763168992128,0.00026303,95046.0,95045.0,0.04558]
[1763168992528,0.00026303,95046.0,95045.0,0.07385448]
[1763168992731,0.00026303,95046.0,95045.0,0.04558]
[1763168993134,0.00026303,95046.0,95045.0,0.07385448]
[1763168993343,0.00026303,95046.0,95045.0,0.04558]
[1763168993546,0.40514,95068.0,95062.0,0.1052835]
[1763168993846,0.04434,95063.0,95062.0,0.1508635]
[1763168997645,0.40694,95068.0,95067.0,0.04409]
[1763168998351,0.04614,95068.0,95067.0,0.04409]
[1763168998744,0.02324,95068.0,95067.0,0.04409]
[1763168998946,0.00219803,95070.0,95069.0,0.04409]
[1763168999443,0.02824,95076.0,95075.0,0.04409]
[1763168999646,0.04614,95071.0,95070.0,0.00073267]
[1763168999848,0.04614,95071.0,95060.0,0.15625438]
[1763168999849,0.04614,95061.0,95060.0,0.15625438]
[1763169000050,0.04614,95061.0,95060.0,0.07309715]
[1763169000249,0.04614,95061.0,95060.0,0.04482267]
[1763169000651,0.40694,95061.0,95060.0,0.00073267]
[1763169001144,0.04614,95056.0,95055.0,0.00015782]
[1763169001544,0.1645207,95056.0,95055.0,0.00015782]
[1763169001739,0.04614,95041.0,95040.0,0.15623369]
[1763169001948,0.02324,95041.0,95040.0,0.07234379]
[1763169002153,0.04614,95041.0,95040.0,0.02825379]
[1763169002452,0.06170803,95040.0,95039.0,0.02297]
[1763169002650,0.10994762,95040.0,95039.0,0.02297]
[1763169002850,0.06170803,95040.0,95039.0,0.04409]
[1763169003149,0.00219803,95040.0,95039.0,0.04409]
[1763169003554,0.04833803,95040.0,95039.0,0.04509]
[1763169004346,0.00015753,95049.0,95048.0,0.04409]
[1763169004545,0.02339753,95049.0,95048.0,0.04409]
[1763169004751,0.00015753,95049.0,95048.0,0.04409]
[1763169004952,0.04629753,95049.0,95048.0,0.04409]
[1763169006245,0.40709753,95049.0,95048.0,0.04409]
[1763169007154,0.04614,95041.0,95040.0,0.1493981]
[1763169007355,0.36095753,95049.0,95040.0,0.1493981]
[1763169008453,0.40709753,95049.0,95048.0,0.04409]
[1763169008651,0.00015753,95049.0,95048.0,0.04409]
[1763169009455,0.37417,95060.0,95049.0,0.1052981]
[1763169009660,0.42240959,95060.0,95059.0,0.04409]
[1763169009960,0.44784762,95060.0,95059.0,0.04409]
[1763169010158,0.39960803,95060.0,95059.0,0.04409]
[1763169010857,0.04379,95051.0,95050.0,0.17194772]
[1763169011059,0.04379,95051.0,95050.0,0.00015782]
[1763169011655,0.02183,95033.0,95031.0,0.02827611]
[1763169011855,0.04379,95031.0,95030.0,0.15625601]
[1763169012171,0.04379,95027.0,95025.0,0.02827611]
[1763169012351,0.04379,95024.0,95023.0,0.3608]
[1763169012956,0.04379,95024.0,95023.0,0.03780054]
[1763169013656,0.04379,95024.0,95021.0,0.1279799]
[1763169013657,0.04379,95023.0,95022.0,0.03780054]
[1763169013964,0.04279,95023.0,95022.0,0.03780054]
[1763169014158,0.04279,95023.0,95021.0,0.03780054]
[1763169014464,0.04379,95020.0,95019.0,0.03299004]
[1763169014761,0.04598803,95020.0,95019.0,0.02239]
[1763169015260,0.04598803,95020.0,95014.0,0.00015782]
[1763169015451,0.04379,95015.0,95014.0,0.04396782]
[1763169015657,0.04379,95015.0,95014.0,0.00015782]
[1763169015857,0.02183,95015.0,95014.0,0.05475253]
[1763169016461,0.04379,95015.0,95014.0,0.05475253]
[1763169017262,0.04379,95015.0,95014.0,0.05575253]
[1763169017659,0.04379,95015.0,95014.0,0.05475253]
[1763169017860,0.3608,95018.0,95017.0,0.1491438]
[1763169018166,0.3608,95018.0,95017.0,0.18692916]
[1763169019053,0.04379,95023.0,95022.0,0.149137]
[1763169019464,0.04379,95023.0,95022.0,0.04381]
[1763169020051,0.04379,95018.0,95017.0,0.03778536]
[1763169020251,0.04379,95018.0,95014.0,0.01094253]
[1763169020252,0.04379,95016.0,95014.0,0.00015782]
[1763169020455,0.04379,95015.0,95014.0,0.02848795]
[1763169021061,0.04379,95015.0,95014.0,0.00015782]
[1763169022554,0.3608,95018.0,95017.0,0.04381]
[1763169022763,0.40459,95018.0,95017.0,0.04381]
[1763169022966,0.38263,95018.0,95017.0,0.04381]
[1763169023562,0.40459,95018.0,95017.0,0.04381]
[1763169023869,0.38263,95018.0,95017.0,0.17744708]
[1763169024469,0.40459,95018.0,95017.0,0.07211328]
[1763169025169,0.40459,95018.0,95017.0,0.04381]
[1763169026063,0.04379,95015.0,95014.0,0.00015782]
[1763169028176,0.04623,94996.0,94995.0,0.05669845]
[1763169028366,0.04623,94991.0,94990.0,0.1279799]
[1763169028676,0.04623,94991.0,94990.0,0.0554151]
[1763169028874,0.38407,95005.0,95004.0,0.0451]
[1763169029170,0.40712012,95005.0,95004.0,0.0451]
[1763169032775,0.40712012,95005.0,95004.0,0.0461]
[1763169033678,0.36089012,95005.0,95004.0,0.0461]
[1763169034080,0.40712012,95005.0,95004.0,0.0461]
[1763169034381,0.40712012,95005.0,95004.0,0.0451]
[1763169035083,0.40712012,95005.0,95004.0,0.02289]
[1763169035876,0.40712012,95005.0,95004.0,0.02389]
[1763169036082,0.40712012,95005.0,95004.0,0.0461]
[1763169036278,0.40712012,95005.0,95004.0,0.0451]
[1763169039280,0.40712012,95005.0,95004.0,0.07341589]
[1763169040275,0.40712012,95005.0,95004.0,0.0451]
[1763169042775,0.36089012,95005.0,95004.0,0.0451]
[1763169042975,9.012e-05,95005.0,95004.0,0.0451]
[1763169043381,9.012e-05,95005.0,95004.0,0.10179845]
[1763169043578,0.04632012,95005.0,95004.0,0.10179845]
[1763169043987,0.04632012,95005.0,95004.0,0.0451]
[1763169044175,0.00219803,95000.0,94995.0,0.12813781]
[1763169044485,0.04623,94996.0,94995.0,0.23000203]
[1763169044692,0.04623,94996.0,94995.0,0.10202213]
[1763169044988,0.04623,94996.0,94995.0,0.05832791]
[1763169045374,0.04623,94996.0,94995.0,0.05932791]
[1763169045788,0.00219803,95000.0,94999.0,0.1504538]
[1763169045789,0.02515803,95000.0,94999.0,0.1504538]
[1763169045987,0.02515803,95000.0,94999.0,0.20722701]
[1763169046587,0.00219803,95000.0,94999.0,0.20722701]
[1763169046785,0.02515803,95000.0,94999.0,0.20722701]
[1763169047390,0.04842803,95000.0,94999.0,0.20822701]
[1763169047794,0.04842803,95000.0,94999.0,0.0461]
[1763169047982,0.04842803,95000.0,94999.0,0.10287321]
[1763169049186,0.04842803,95000.0,94999.0,0.0461]
[1763169051096,0.04842803,95000.0,94999.0,0.1514538]
[1763169051392,0.00219803,95000.0,94999.0,0.1514538]
[1763169052989,9.012e-05,95005.0,95004.0,0.0451]
[1763169054691,0.04632012,95005.0,95004.0,0.0451]
[1763169054894,0.04842803,95000.0,94999.0,0.4059]
[1763169055296,0.02515803,95000.0,94999.0,0.4059]
[1763169055696,0.04842803,95000.0,94999.0,0.4059]
[1763169055895,0.04842803,95000.0,94999.0,0.4069]
[1763169056488,0.04742803,95000.0,94999.0,0.4069]
[1763169057395,9.012e-05,95005.0,95004.0,0.1635182]
[1763169057396,0.02305012,95005.0,95004.0,0.1635182]
[1763169058699,0.02305012,95005.0,95004.0,0.1645182]
[1763169059398,9.012e-05,95005.0,95004.0,0.1645182]
[1763169059600,0.04403012,95005.0,95004.0,0.1655182]
[1763169059997,9.012e-05,95005.0,95004.0,0.1655182]
[1763169061499,0.02226012,95005.0,95004.0,0.1655182]
[1763169062497,9.012e-05,95005.0,95004.0,0.1655182]
[1763169062893,0.04403012,95005.0,95004.0,0.06017]
[1763169063199,0.04403012,95005.0,95004.0,0.0471]
[1763169063993,0.04394,94996.0,94995.0,0.00015791]
[1763169064195,0.04262,94983.0,94981.0,0.075689]
[1763169064394,0.04062,94973.0,94972.0,0.119999]
[1763169064600,0.03973436,94973.0,94972.0,0.04431]
[1763169064801,0.03873436,94973.0,94972.0,0.04431]
[1763169064999,0.03873436,94973.0,94972.0,0.05487616]
[1763169065201,0.00011436,94973.0,94972.0,0.05487616]
[1763169065392,0.00011436,94973.0,94972.0,0.05587616]
[1763169066295,0.00011436,94973.0,94972.0,0.05687616]
[1763169068802,0.00011436,94973.0,94972.0,0.41767616]
[1763169069002,0.00015791,94982.0,94981.0,0.04431]
[1763169069302,0.00015791,94982.0,94981.0,0.1496837]
[1763169070004,0.3608,94996.0,94995.0,0.05895]
[1763169070206,0.01831,94996.0,94995.0,0.08731751]
[1763169070503,0.03662,94996.0,94995.0,0.08731527]
[1763169070704,0.03662,94996.0,94995.0,0.05895]
[1763169072100,0.0385507,95000.0,94999.0,0.0455]
[1763169072404,0.15769573,95000.0,94999.0,0.0455]
[1763169076207,0.15769573,95000.0,94987.0,0.03782334]
[1763169076208,0.03662,94988.0,94987.0,0.03782334]
[1763169076407,0.03662,94987.0,94986.0,0.00015791]
[1763169078602,0.03662,94987.0,94986.0,0.0285163]
[1763169079309,0.1496048,94987.0,94986.0,0.0285163]
[1763169079911,0.1496048,94987.0,94986.0,0.00015791]
[1763169080204,0.03662,94981.0,94980.0,0.02835839]
[1763169080409,0.03662,94981.0,94980.0,0.02935385]
[1763169080603,0.15358451,94981.0,94980.0,0.001]
[1763169081505,0.03562,94975.0,94974.0,0.02835385]
[1763169081701,0.39642,94975.0,94974.0,0.02835385]
[1763169081901,0.3608,94975.0,94974.0,0.07385385]
[1763169082102,0.3608,94975.0,94974.0,0.1508815]
[1763169082603,0.3608,94975.0,94974.0,0.1518815]
[1763169082808,0.00015791,94984.0,94983.0,0.0455]
[1763169083010,0.00015791,94984.0,94983.0,0.0738397]
[1763169083203,0.01746791,94984.0,94983.0,0.0738397]
[1763169083510,0.01746791,94984.0,94983.0,0.0455]
[1763169084012,0.00015791,94984.0,94983.0,0.0455]
[1763169084912,0.00015791,94984.0,94983.0,0.08332334]
[1763169085607,0.00015791,94984.0,94983.0,0.0455]
[1763169086109,0.39542,94999.0,94998.0,0.0455]
[1763169086615,0.50848014,94999.0,94998.0,0.0455]
[1763169087301,0.47386014,94999.0,94998.0,0.1508549]
[1763169087506,0.3608,94999.0,94998.0,0.17920604]
[1763169087709,0.3258,94999.0,94998.0,0.17921083]
[1763169087914,0.3258,94999.0,94998.0,0.1508549]
[1763169088517,0.00015791,95008.0,95007.0,0.1511949]
[1763169089609,0.00115791,95008.0,95007.0,0.1511949]
[1763169090012,0.00015791,95008.0,95007.0,0.1511949]
[1763169090310,0.00015791,95008.0,95007.0,0.04585]
[1763169090512,0.04438791,95008.0,95007.0,0.04585]
[1763169090906,0.04538791,95008.0,95007.0,0.04585]
[1763169091604,0.00015791,95008.0,95007.0,0.04585]
[1763169092118,0.3608,95017.0,95016.0,0.05974]
[1763169092614,0.3608,95017.0,95016.0,0.20288436]
[1763169092814,0.3608,95017.0,95016.0,0.1650749]
[1763169094427,0.00015791,95026.0,95025.0,0.04585]
[1763169095819,0.00115791,95026.0,95025.0,0.04585]
[1763169096013,0.00115791,95026.0,95025.0,0.40665]
[1763169096519,0.04538791,95026.0,95025.0,0.40665]
[1763169097617,0.02417791,95026.0,95025.0,0.5119749]
[1763169098710,0.04538791,95026.0,95025.0,0.5119749]
[1763169098910,0.04538791,95026.0,95025.0,0.40665]
[1763169099106,0.04538791,95026.0,95024.0,0.0282953]
[1763169099313,0.04423,95023.0,95021.0,0.0282953]
[1763169099617,0.01291,95024.0,95020.0,0.0292953]
[1763169099618,0.04423,95022.0,95020.0,0.0292953]
[1763169099818,0.04423,95021.0,95020.0,0.001]
[1763169100121,0.1556402,95021.0,95020.0,0.001]
[1763169100306,0.04423,95021.0,95013.0,0.0282953]
[1763169100511,0.04423,95013.0,95011.0,0.0282953]
[1763169100716,0.00678,95016.0,95011.0,0.04585]
[1763169100917,0.04423,95012.0,95011.0,0.04585]
[1763169101124,0.04423,95012.0,95011.0,0.02317]
[1763169101923,0.04423,95012.0,95010.0,0.001]
[1763169101924,0.40503,95018.0,95017.0,0.04585]
[1763169102329,0.5228664,95018.0,95017.0,0.04585]
[1763169102513,0.5228664,95018.0,95008.0,0.01389]
[1763169102514,0.04423,95009.0,95008.0,0.02317]
[1763169103113,0.04423,95009.0,95008.0,0.04585]
[1763169103417,0.04423,95009.0,95008.0,0.05974]
[1763169108920,0.02302,95009.0,95008.0,0.05974]
[1763169109109,0.3608,95018.0,95017.0,0.04585]
[1763169109315,0.04438791,95026.0,95025.0,0.04585]
[1763169109820,0.00015791,95026.0,95025.0,0.04585]
[1763169110816,0.00115791,95026.0,95025.0,0.04585]
[1763169115318,0.00115791,95026.0,95025.0,0.18898214]
[1763169116222,0.00115791,95026.0,95025.0,0.151175]
[1763169116418,0.00058261,95026.0,95025.0,0.151175]
[1763169116722,0.3608,95036.0,95035.0,0.04585]
[1763169116723,0.38382,95036.0,95035.0,0.04585]
[1763169117117,0.3608,95036.0,95035.0,0.04585]
[1763169117520,0.38382,95036.0,95035.0,0.04585]
[1763169118025,0.38482,95036.0,95035.0,0.04585]
[1763169118225,0.38582,95036.0,95035.0,0.04585]
[1763169118426,0.38582,95036.0,95035.0,0.0565927]
[1763169118630,0.40703,95036.0,95035.0,0.0565927]
[1763169120822,0.40703,95036.0,95035.0,0.1619066]
[1763169121027,0.40703,95036.0,95035.0,0.0565927]
[1763169125031,0.40703,95036.0,95035.0,0.08496286]
[1763169125722,0.40703,95036.0,95035.0,0.0565927]
[1763169125926,0.40703,95036.0,95035.0,0.08496171]
[1763169126721,0.3628,95036.0,95035.0,0.1619066]
[1763169126928,0.002,95036.0,95035.0,0.1619066]
[1763169127122,0.02309,95036.0,95035.0,0.1619066]
[1763169127322,0.0462,95036.0,95035.0,0.0565927]
[1763169127532,0.0462,95036.0,95035.0,0.0107427]
[1763169127725,0.0442,95034.0,95033.0,0.05900468]
[1763169127931,0.0442,95034.0,95033.0,0.03781468]
[1763169128225,0.0442,95032.0,95031.0,0.03781468]
[1763169128431,0.0442,95032.0,95031.0,0.05900468]
[1763169128730,0.0442,95032.0,95031.0,0.08052468]
[1763169129926,0.0442,95032.0,95031.0,0.04271]
[1763169130333,0.0452,95032.0,95031.0,0.04271]
[1763169130630,0.0462,95032.0,95031.0,0.04271]
[1763169130832,0.0462,95032.0,95026.0,0.12820796]
[1763169130833,0.0441107,95030.0,95029.0,0.03781468]
[1763169131030,0.04218,95027.0,95026.0,0.12820796]
[1763169131229,0.04218,95027.0,95026.0,0.00015791]
[1763169132034,0.04218,95027.0,95026.0,0.0285218]
[1763169132240,0.04218,95027.0,95026.0,0.00015791]
[1763169132922,0.1629968,95027.0,95022.0,0.02836389]
[1763169133124,0.1629968,95027.0,95017.0,0.12805005]
[1763169133125,0.04218,95022.0,95021.0,0.02836389]
[1763169133327,0.04218,95018.0,95017.0,0.12805005]
[1763169133532,0.0019307,95020.0,95014.0,0.03781468]
[1763169133533,0.04218,95015.0,95014.0,0.03781468]
[1763169133828,0.04218,95011.0,95010.0,0.001]
[1763169135227,0.04218,95011.0,95010.0,0.02836724]
[1763169135433,0.04218,95011.0,95001.0,0.00015791]
[1763169135434,0.04218,95007.0,95006.0,0.02836724]
[1763169135832,0.04218,95006.0,95005.0,0.02836724]
[1763169136729,0.04218,95004.0,95003.0,0.02836724]
[1763169136929,0.04218,95003.0,95002.0,0.02836724]
[1763169137132,0.04218,95003.0,95001.0,0.00015791]
[1763169137133,0.04218,95003.0,95001.0,0.02852515]
[1763169137431,0.04218,95002.0,95001.0,0.00015791]
[1763169137936,0.04218,95002.0,95000.0,0.001]
[1763169137937,0.16329089,95002.0,95000.0,0.001]
[1763169138131,0.04218,95001.0,95000.0,0.001]
[1763169138634,0.16042916,95001.0,95000.0,0.001]
[1763169140125,0.16142916,95001.0,95000.0,0.001]
[1763169140329,0.16242916,95001.0,95000.0,0.001]
[1763169141938,0.16242916,95001.0,95000.0,0.0437]
[1763169142325,0.16042916,95001.0,95000.0,0.0437]
[1763169142531,0.16142916,95001.0,95000.0,0.001]
[1763169145236,0.16142916,95001.0,95000.0,0.0437]
[1763169145734,0.16042916,95001.0,95000.0,0.02255]
[1763169145945,0.16142916,95001.0,95000.0,0.02255]
[1763169146241,0.16142916,95001.0,95000.0,0.001]
[1763169146729,0.16142916,95001.0,95000.0,0.02255]
[1763169146928,0.16042916,95001.0,95000.0,0.02255]
[1763169147146,0.16142916,95001.0,95000.0,0.02255]
[1763169148635,0.16242916,95001.0,95000.0,0.02255]
[1763169149843,0.16142916,95001.0,95000.0,0.02255]
[1763169150040,0.16042916,95001.0,95000.0,0.02255]
[1763169152037,0.04374,95016.0,95015.0,0.04513]
[1763169152439,0.04374,95011.0,95010.0,0.04613]
[1763169152844,0.04374,95011.0,95000.0,0.1025394]
[1763169152845,0.04374,95001.0,95000.0,0.1025394]
[1763169153046,0.04374,95001.0,95000.0,0.001]
[1763169153247,0.15452524,95001.0,95000.0,0.001]
[1763169155741,0.15552524,95001.0,95000.0,0.001]
[1763169156144,0.04374,94992.0,94991.0,0.00015791]
[1763169156452,0.15758557,94992.0,94991.0,0.00015791]
[1763169162652,0.05654,94983.0,94982.0,0.1025394]
[1763169162857,0.05654,94983.0,94980.0,0.13090664]
[1763169162858,0.04374,94977.0,94976.0,0.06111468]
[1763169163156,0.04374,94977.0,94976.0,0.0233]
[1763169163352,0.04374,94977.0,94976.0,0.04513]
[1763169165658,0.0019307,94980.0,94979.0,0.04513]
[1763169165963,0.04374,94997.0,94996.0,0.04513]
[1763169166260,0.16578019,94997.0,94996.0,0.04513]
[1763169166660,0.16578019,94997.0,94991.0,0.02841045]
[1763169166661,0.04374,94992.0,94991.0,0.02841045]
[1763169167166,0.04374,94991.0,94990.0,0.02841045]
[1763169167563,0.16133547,94991.0,94990.0,0.02841045]
[1763169168154,0.16133547,94991.0,94989.0,0.02841045]
[1763169168349,0.05654,94990.0,94989.0,0.02841045]
[1763169168560,0.0584707,94990.0,94989.0,0.02841045]
[1763169168764,0.17612805,94990.0,94989.0,0.02841045]
[1763169170762,0.04374,94988.0,94987.0,0.04528791]
[1763169172559,0.04374,94988.0,94987.0,0.00015791]
[1763169172759,0.16419785,94988.0,94987.0,0.00015791]
[1763169175460,0.16419785,94988.0,94970.0,0.1025394]
[1763169175461,0.04374,94971.0,94970.0,0.1025394]
[1763169175768,0.15542256,94971.0,94970.0,0.001]
[1763169177064,0.04374,94962.0,94961.0,0.04542289]
[1763169178171,0.04474,94962.0,94961.0,0.04542289]
[1763169178565,0.04374,94962.0,94961.0,0.04542289]
[1763169178873,0.04474,94962.0,94961.0,0.04542289]
[1763169179758,0.001,94962.0,94961.0,0.04542289]
[1763169179962,0.00015791,94980.0,94961.0,0.04542289]
[1763169179963,0.02336791,94980.0,94979.0,0.04512]
[1763169180275,0.14174005,94980.0,94979.0,0.04512]
[1763169180461,0.11853005,94980.0,94979.0,0.04512]
[1763169180659,0.11659935,94980.0,94979.0,0.04512]
[1763169180873,0.00015791,94980.0,94979.0,0.04512]
[1763169181072,0.00208861,94980.0,94979.0,0.04512]
[1763169181270,0.00208861,94980.0,94965.0,0.07972829]
[1763169181271,0.04475,94966.0,94965.0,0.07972829]
[1763169181474,0.04475,94966.0,94965.0,0.02304]
[1763169181669,0.04475,94962.0,94961.0,0.02333289]
[1763169181875,0.04475,94962.0,94961.0,0.04541289]
[1763169182370,0.0136,94976.0,94961.0,0.04541289]
[1763169182566,0.04475,94971.0,94970.0,0.04612]
[1763169182973,0.16227697,94971.0,94970.0,0.04612]
[1763169184167,0.00015791,94980.0,94979.0,0.04512]
[1763169184785,0.05121096,95008.0,95007.0,0.04512]
[1763169184786,0.04475,95008.0,95007.0,0.04512]
[1763169185672,0.0019307,95010.0,95009.0,0.04512]
[1763169185868,0.38416791,95017.0,95016.0,0.04512]
[1763169186070,0.36095791,95017.0,95016.0,0.1504549]
[1763169186275,0.00015791,95017.0,95016.0,0.1504549]
[1763169186576,0.3608,95033.0,95032.0,0.1504372]
[1763169187063,0.12085155,95039.0,95038.0,0.1504305]
[1763169187263,0.0466807,95040.0,95039.0,0.02304]
[1763169187472,0.0466807,95040.0,95039.0,0.04512]
[1763169187676,0.0019307,95040.0,95039.0,0.04512]
[1763169187971,0.00015791,95049.0,95048.0,0.04512]
[1763169188183,0.40555,95072.0,95071.0,0.04512]
[1763169188568,0.52000434,95072.0,95071.0,0.04512]
[1763169189072,0.005,95076.0,95075.0,0.04512]
[1763169190179,0.04508,95071.0,95070.0,0.001]
[1763169190379,0.3608,95073.0,95072.0,0.04449]
[1763169191375,0.04508,95071.0,95070.0,0.001]
[1763169191582,0.04508,95071.0,95070.0,0.04549]
[1763169192081,0.007,95076.0,95075.0,0.04449]
[1763169192472,0.006,95076.0,95075.0,0.04449]
[1763169192766,0.005,95076.0,95075.0,0.04449]
[1763169193279,0.006,95076.0,95075.0,0.04449]
[1763169193683,0.007,95076.0,95075.0,0.04449]
[1763169193878,0.03002,95076.0,95075.0,0.04449]
[1763169194180,0.05208,95076.0,95075.0,0.04449]
[1763169194583,0.16718071,95076.0,95075.0,0.04449]
[1763169195083,0.04508,95071.0,95070.0,0.02246]
[1763169195673,0.15975685,95071.0,95070.0,0.001]
[1763169195981,0.04508,95071.0,95070.0,0.04549]
[1763169196182,0.04508,95071.0,95070.0,0.02246]
[1763169196370,0.15873034,95071.0,95070.0,0.02246]
[1763169196576,0.15873034,95071.0,95070.0,0.001]
[1763169196876,0.04508,95063.0,95062.0,0.00015781]
[1763169197188,0.04508,95063.0,95062.0,0.02161781]
[1763169197786,0.04508,95063.0,95062.0,0.00015781]
[1763169198584,0.04508,95063.0,95062.0,0.05824781]
[1763169199184,0.04508,95063.0,95062.0,0.04464781]
[1763169199587,0.04608,95063.0,95062.0,0.04464781]
[1763169199887,0.04608,95063.0,95062.0,0.02161781]
[1763169200089,0.15573977,95063.0,95062.0,0.00015781]
[1763169200389,0.15473977,95063.0,95062.0,0.00015781]
[1763169201986,0.15573977,95063.0,95062.0,0.00015781]
[1763169202382,0.15673977,95063.0,95062.0,0.00015781]
[1763169202690,0.15573977,95063.0,95062.0,0.00015781]
[1763169202882,0.15673977,95063.0,95062.0,0.00015781]
[1763169203288,0.15573977,95063.0,95062.0,0.00015781]
[1763169203488,0.15473977,95063.0,95062.0,0.00015781]
[1763169203784,0.15573977,95063.0,95062.0,0.00015781]
[1763169206293,0.002,95063.0,95062.0,0.04464781]
[1763169207392,0.001,95063.0,95062.0,0.04464781]
[1763169207991,0.02802,95076.0,95075.0,0.04347]
[1763169208293,0.14182465,95076.0,95075.0,0.04347]
[1763169208693,0.16475465,95076.0,95075.0,0.04347]
[1763169209080,0.14182465,95076.0,95075.0,0.04347]
[1763169209281,0.16342465,95076.0,95075.0,0.04347]
[1763169209889,0.16542465,95076.0,95075.0,0.04347]
[1763169213093,0.12080465,95076.0,95075.0,0.04347]
[1763169213486,0.16542465,95076.0,95075.0,0.04347]
[1763169213891,0.007,95076.0,95075.0,0.04347]
[1763169214600,0.05162,95076.0,95075.0,0.04347]
[1763169216595,0.007,95076.0,95075.0,0.04347]
[1763169218500,0.0019307,95080.0,95079.0,0.04491]
[1763169219195,0.00015772,95081.0,95080.0,0.05967]
[1763169220694,0.03733096,95098.0,95085.0,0.1501685]
[1763169220900,0.04462,95104.0,95103.0,0.04491]
[1763169221200,0.16383281,95104.0,95103.0,0.04491]
[1763169221590,0.04462,95104.0,95103.0,0.04491]
[1763169221794,0.15441545,95104.0,95103.0,0.0229]
[1763169221994,0.04462,95101.0,95100.0,0.188667]
[1763169222200,0.04462,95101.0,95100.0,0.0239]
[1763169222403,0.15441545,95101.0,95100.0,0.0239]
[1763169222904,0.15441545,95101.0,95100.0,0.04591]